bitfinex/quotes_ETHUSD_20260102
["timestamp","ask_amount","ask_price","bid_price","bid_amount"]
[1767371562757,11.42999514,3123.6,3122.0,0.0147187]
[1767371562983,3.20153673,3123.5,3122.0,3.21772391]
[1767371563181,0.839,3123.4,3122.0,3.2177745]
[1767371563459,0.839,3123.4,3122.0,3.22738227]
[1767371563871,9.62453964,3124.5,3122.3,7.449209]
[1767371564191,9.62453964,3124.5,3122.5,8.903]
[1767371564397,9.62453964,3124.3,3122.6,0.86330751]
[1767371564562,9.62453964,3124.1,3122.6,0.02430751]
[1767371564763,9.66455244,3124.0,3122.4,1.71620641]
[1767371564967,9.62453964,3123.8,3122.4,1.71620641]
[1767371565272,9.62453964,3123.8,3122.3,0.86331699]
[1767371565487,10.46353964,3123.7,3122.3,0.02431699]
[1767371565694,10.46353964,3123.7,3121.9,0.0253201]
[1767371565909,10.46353964,3123.7,3121.9,0.001]
[1767371565910,9.62453964,3123.5,3121.9,0.001]
[1767371566108,9.62453964,3123.3,3121.9,0.001]
[1767371566310,9.62453964,3123.1,3122.0,0.001]
[1767371566614,9.62453964,3123.1,3121.0,10.57619195]
[1767371566813,9.62453964,3123.8,3121.7,12.91619836]
[1767371567112,12.82587139,3123.7,3121.9,6.4063551]
[1767371567275,16.02720314,3123.7,3122.0,0.7512929]
[1767371567782,16.02720314,3123.7,3122.0,1.5902929]
[1767371568322,9.66455756,3123.6,3122.0,0.72696822]
[1767371568473,9.62453964,3123.6,3121.8,0.86332624]
[1767371568677,9.62453964,3123.4,3121.8,0.839]
[1767371568879,9.62453964,3123.2,3121.8,0.839]
[1767371569184,9.62453964,3123.2,3121.8,3.20327057]
[1767371569185,12.8264127,3123.2,3121.8,3.20327057]
[1767371569387,12.8264127,3123.2,3121.9,0.32275986]
[1767371569567,3.20187306,3123.2,3121.9,0.32275986]
[1767371569772,9.62453964,3124.1,3122.3,6.037108]
[1767371569988,9.62453964,3123.9,3122.2,9.71285512]
[1767371570184,0.839,3123.8,3122.3,0.02531501]
[1767371570377,0.839,3123.8,3122.4,0.97381701]
[1767371570612,9.62453964,3123.6,3121.3,9.71285512]
[1767371570767,9.62453964,3123.4,3121.0,0.839]
[1767371570975,6.40389356,3123.1,3121.1,3.863456]
[1767371571191,9.62453964,3123.0,3121.2,3.20389593]
[1767371571388,9.62453964,3123.0,3121.1,4.0429679]
[1767371571596,9.62453964,3122.8,3121.2,0.72469824]
[1767371571800,10.46353964,3122.8,3121.2,0.72469824]
[1767371572170,10.46353964,3122.8,3121.2,10.43755336]
[1767371572504,3.20177791,3123.3,3121.2,10.43755336]
[1767371572505,16.02716072,3124.7,3122.6,9.71285512]
[1767371572719,9.62453964,3124.6,3122.8,9.71285512]
[1767371572893,0.002,3124.7,3123.0,9.71285512]
[1767371573198,9.62653964,3124.7,3123.1,16.9556756]
[1767371573400,9.62653964,3124.7,3123.1,9.71285512]
[1767371573568,0.839,3124.6,3123.1,9.71285512]
[1767371573767,1.88555396,3124.6,3123.1,10.68414063]
[1767371573990,1.88555396,3124.6,3123.1,4.17323061]
[1767371574197,0.002,3124.1,3122.9,4.04108908]
[1767371574467,0.002,3124.1,3122.8,2.37344]
[1767371574683,0.002,3124.1,3123.1,3.20191134]
[1767371575099,0.002,3124.1,3123.3,3.20174174]
[1767371575301,0.839,3124.6,3123.3,3.20174174]
[1767371575475,0.839,3124.6,3123.1,9.71285512]
[1767371575476,4.03945283,3124.6,3123.4,0.6403528]
[1767371575672,4.03948293,3124.6,3123.1,9.71285512]
[1767371575878,4.03948293,3124.6,3122.4,4.45314008]
[1767371575879,9.62453964,3124.5,3122.4,14.1659952]
[1767371576108,9.62453964,3124.5,3123.1,3.20186928]
[1767371576406,9.62453964,3124.5,3122.9,3.20214074]
[1767371576407,0.839,3124.6,3122.9,9.2759384]
[1767371576606,0.839,3124.6,3123.2,3.20183066]
[1767371576898,4.03942672,3124.6,3123.1,3.20192351]
[1767371577122,4.03942672,3124.6,3122.9,10.1149384]
[1767371577354,4.03942672,3124.6,3123.1,4.061345]
[1767371577611,9.18639628,3124.5,3122.5,3.20247096]
[1767371577811,9.22640396,3124.4,3122.4,9.2759384]
[1767371577997,9.18639628,3124.4,3122.4,9.2759384]
[1767371578197,9.18639628,3124.2,3122.5,1.01149384]
[1767371578384,0.91863963,3124.3,3122.5,1.01149384]
[1767371578385,9.2264078,3124.1,3122.5,1.01149384]
[1767371578591,9.18639628,3124.1,3122.5,10.28743224]
[1767371578778,6.40085344,3124.6,3122.5,1.01149384]
[1767371578779,9.18639628,3124.2,3122.5,1.01149384]
[1767371578979,10.0654078,3124.1,3122.1,6.197103]
[1767371579217,6.40204864,3124.0,3122.2,3.20284992]
[1767371579414,0.839,3123.9,3122.4,9.2759384]
[1767371579699,0.839,3123.9,3122.5,5.376951]
[1767371579874,0.04001536,3123.8,3122.4,9.2759384]
[1767371580074,0.839,3123.9,3122.4,9.2759384]
[1767371580271,9.18639628,3123.9,3122.2,9.2759384]
[1767371580500,0.839,3123.8,3122.4,9.2759384]
[1767371580696,0.839,3123.8,3122.1,6.4059447]
[1767371580697,0.839,3123.8,3122.7,25.5869344]
[1767371580908,0.839,3123.8,3122.7,9.2759384]
[1767371581134,0.839,3123.8,3122.8,0.92759384]
[1767371581333,0.839,3123.8,3122.2,9.2759384]
[1767371581539,0.04000768,3124.4,3122.6,3.20239333]
[1767371581540,0.839,3123.7,3122.6,3.20239333]
[1767371581834,0.04001792,3123.6,3122.5,9.2759384]
[1767371582042,0.839,3123.7,3122.5,9.2759384]
[1767371582217,0.839,3123.6,3122.7,3.202317]
[1767371582419,0.839,3123.6,3122.8,0.3202317]
[1767371582733,0.839,3123.7,3122.9,9.2759384]
[1767371582934,0.841,3124.1,3122.9,9.2759384]
[1767371583142,0.002,3124.1,3122.9,12.47808595]
[1767371583341,0.002,3124.1,3123.0,14.4890894]
[1767371583512,0.002,3124.7,3123.1,11.36527728]
[1767371583710,0.002,3124.7,3123.3,9.2759384]
[1767371583909,0.002,3124.7,3123.4,9.2759384]
[1767371584254,9.18639628,3126.3,3124.3,9.2759384]
[1767371584608,10.18893591,3126.3,3124.4,10.28743224]
[1767371584873,16.58628595,3126.3,3124.5,5.752079]
[1767371585062,16.58628595,3126.3,3124.5,4.971079]
[1767371585340,19.78496664,3126.3,3124.4,10.28743224]
[1767371585521,9.18639628,3126.2,3124.4,1.01149384]
[1767371585722,2.4960286,3126.1,3124.5,3.20050239]
[1767371586016,2.4960286,3126.1,3124.3,9.2759384]
[1767371586212,2.4960286,3126.1,3124.3,12.47663426]
[1767371586413,9.18639628,3126.0,3124.4,3.20059367]
[1767371586616,9.18639628,3125.8,3123.6,9.2759384]
[1767371586812,9.18639628,3125.6,3123.1,2.08933888]
[1767371587044,9.18639628,3125.4,3122.6,4.228]
[1767371587364,9.18639628,3125.2,3123.4,9.2759384]
[1767371587521,9.18639628,3125.2,3123.0,5.35685509]
[1767371587522,9.18639628,3125.0,3123.0,0.839]
[1767371587839,9.18639628,3124.8,3122.5,9.308035]
[1767371588029,9.18639628,3124.8,3122.4,0.001]
[1767371588030,0.839,3124.7,3123.0,3.20203792]
[1767371588235,9.2264014,3124.6,3123.1,0.32020379]
[1767371588429,9.18639628,3124.6,3123.1,0.32020379]
[1767371588638,9.18639628,3124.6,3122.8,9.2759384]
[1767371588844,9.18639628,3124.6,3122.8,3.20217976]
[1767371589242,9.18639628,3124.4,3122.5,6.897785]
[1767371589443,9.18639628,3124.4,3122.5,3.392354]
[1767371589620,9.18639628,3124.4,3122.4,6.40632922]
[1767371589824,10.74513832,3124.3,3122.6,5.69774]
[1767371590024,0.839,3124.2,3122.6,4.59074]
[1767371590250,10.02539628,3124.2,3122.6,2.584593]
[1767371590430,10.02539628,3124.2,3122.6,3.17969]
[1767371590635,0.839,3124.1,3122.6,3.17969]
[1767371590833,0.839,3124.1,3122.7,0.39042229]
[1767371591041,10.02539628,3124.1,3122.6,2.275543]
[1767371591249,13.22633083,3124.1,3122.8,0.001]
[1767371591430,9.18639628,3124.1,3122.8,0.001]
[1767371591632,0.839,3124.0,3122.8,0.001]
[1767371592326,10.02539628,3124.0,3122.8,0.001]
[1767371592526,11.14922141,3123.9,3122.8,0.001]
[1767371592726,0.839,3123.8,3122.8,0.001]
[1767371593155,10.02539628,3123.8,3122.4,0.001]
[1767371593342,9.18639628,3123.6,3121.1,0.001]
[1767371593640,9.18639628,3123.4,3121.2,9.2759384]
[1767371593849,9.18639628,3123.2,3121.1,0.001]
[1767371594575,9.18639628,3123.6,3121.9,9.2759384]
[1767371594852,0.839,3123.2,3121.9,9.2759384]
[1767371595058,0.839,3123.1,3122.0,0.92759384]
[1767371595456,9.18639628,3123.6,3122.2,7.205676]
[1767371595755,3.35996209,3125.1,3122.4,4.878761]
[1767371595756,0.839,3123.5,3122.4,4.878761]
[1767371596066,0.839,3123.5,3122.4,2.478479]
[1767371596230,0.839,3123.5,3122.3,9.2759384]
[1767371596431,0.839,3123.5,3122.5,2.091479]
[1767371597050,0.839,3123.5,3122.4,0.92759384]
[1767371597275,0.839,3123.5,3122.5,2.04776]
[1767371597473,0.839,3123.5,3122.6,3.20245948]
[1767371597965,9.18639628,3124.2,3122.7,0.839]
[1767371597966,0.839,3124.1,3122.7,0.839]
[1767371598263,10.02539628,3124.1,3122.8,0.40414595]
[1767371598830,9.18639628,3125.2,3123.2,9.2759384]
[1767371599027,10.02539628,3125.2,3123.4,9.2759384]
[1767371599263,9.18639628,3125.0,3122.8,9.68008435]
[1767371599435,9.18639628,3124.6,3122.9,0.96800844]
[1767371599634,10.02539628,3124.6,3123.1,3.20187384]
[1767371599830,10.02539628,3124.6,3123.0,0.839]
[1767371600065,9.18639628,3124.4,3122.9,0.96800844]
[1767371600357,9.18639628,3124.4,3122.9,1.80700844]
[1767371600560,0.839,3124.6,3122.8,0.40414595]
[1767371600561,9.18639628,3124.2,3122.8,0.40414595]
[1767371600776,0.95864859,3124.3,3122.8,0.40414595]
[1767371600777,9.18639628,3124.0,3122.8,0.839]
[1767371601265,9.18639628,3124.0,3122.9,3.20212537]
[1767371601428,9.18639628,3124.0,3122.8,0.839]
[1767371601629,9.18639628,3124.0,3122.9,3.20213507]
[1767371601825,0.91863963,3124.3,3122.8,7.24350052]
[1767371602030,13.2259272,3124.5,3122.9,0.72435005]
[1767371602258,9.18639628,3124.5,3122.9,10.00028845]
[1767371602561,9.18639628,3125.2,3123.5,9.2759384]
[1767371602732,9.18639628,3125.2,3123.7,25.0282554]
[1767371602927,9.18639628,3125.2,3123.8,3.338423]
[1767371603246,9.18639628,3125.2,3123.9,1.26143614]
[1767371603556,9.18639628,3125.0,3123.2,9.2759384]
[1767371603757,9.18639628,3124.8,3123.4,0.839]
[1767371604354,9.18639628,3124.8,3123.2,15.6796265]
[1767371604555,9.18639628,3124.7,3123.3,0.839]
[1767371605068,9.18639628,3124.7,3123.2,12.47778224]
[1767371605245,9.18639628,3124.7,3123.3,2.08677822]
[1767371605434,12.38675103,3124.7,3123.3,5.28849756]
[1767371605760,12.38675103,3124.7,3122.9,0.72435005]
[1767371605761,9.2264014,3124.6,3122.9,0.72435005]
[1767371605963,9.2264014,3124.6,3122.6,9.2759384]
[1767371605964,9.18639628,3124.6,3122.8,0.839]
[1767371606133,9.26337148,3124.4,3122.8,0.839]
[1767371606334,9.26337148,3124.2,3122.8,0.839]
[1767371606532,9.26337148,3124.2,3122.8,4.04122444]
[1767371606769,9.26337148,3124.2,3123.0,3.20198569]
[1767371607062,9.26337148,3124.2,3123.1,0.32019857]
[1767371607660,13.4016913,3124.7,3123.1,3.52214507]
[1767371607862,13.4016913,3124.7,3123.2,9.55193167]
[1767371607863,9.36237256,3124.7,3123.2,9.55193167]
[1767371608161,9.36237256,3125.2,3123.4,9.55193167]
[1767371608332,9.36237256,3125.2,3123.8,9.55193167]
[1767371608533,9.36237256,3125.7,3124.1,5.976746]
[1767371608739,9.36237256,3125.7,3124.2,9.55193167]
[1767371608964,9.36237256,3125.7,3124.3,11.66115]
[1767371609136,9.36237256,3125.7,3124.4,0.839]
[1767371609342,9.36437256,3126.3,3124.6,23.21159767]
[1767371609553,9.36437256,3126.3,3124.8,6.40040962]
[1767371610067,9.36437256,3126.3,3124.7,2.32115977]
[1767371610068,9.4023572,3126.2,3124.7,2.32115977]
[1767371610253,9.36237256,3126.2,3124.7,3.20029966]
[1767371610454,9.36237256,3126.2,3124.8,9.55193167]
[1767371610770,9.36237256,3126.2,3124.9,0.839]
[1767371611239,9.36237256,3126.0,3123.9,11.34832694]
[1767371611438,9.36237256,3125.8,3124.1,7.78159713]
[1767371611638,9.36237256,3125.6,3124.2,1.73335288]
[1767371611873,9.36237256,3125.4,3123.3,6.015103]
[1767371612042,10.62198618,3125.7,3123.2,9.55193167]
[1767371612043,9.36237256,3125.2,3123.2,9.55193167]
[1767371612242,9.36237256,3125.0,3123.3,0.839]
[1767371612448,9.36237256,3124.8,3123.2,9.55193167]
[1767371612649,10.20037256,3124.8,3123.4,0.839]
[1767371612852,9.36237256,3125.7,3124.1,15.95377539]
[1767371613167,9.36237256,3125.7,3124.2,10.39093167]
[1767371613336,9.36237256,3125.7,3124.2,0.839]
[1767371613541,9.36237256,3125.7,3124.4,3.20061451]
[1767371613739,9.36237256,3125.7,3124.5,0.32006145]
[1767371613959,9.36237256,3125.7,3124.5,1.15906145]
[1767371614337,9.36237256,3125.7,3124.6,12.154642]
[1767371614943,9.28389871,3125.7,3124.8,13.261154]
[1767371615176,9.36237256,3126.2,3124.9,0.839]
[1767371615374,3.19699493,3128.0,3125.1,11.945184]
[1767371615544,9.36237256,3126.9,3125.3,12.164184]
[1767371615869,9.36237256,3126.9,3125.4,0.839]
[1767371616175,12.5604295,3126.9,3125.4,0.839]
[1767371616392,4.03547928,3127.5,3125.4,0.839]
[1767371616393,9.36237256,3127.4,3125.6,9.55193167]
[1767371616941,7.23291606,3127.5,3125.0,1.4100154]
[1767371616942,9.36237256,3127.2,3125.0,1.4100154]
[1767371617145,10.43039008,3127.5,3124.9,0.839]
[1767371617146,9.36237256,3127.0,3124.9,0.839]
[1767371617463,9.36237256,3126.8,3125.2,9.55193167]
[1767371617657,9.36237256,3126.8,3125.3,6.39938564]
[1767371617860,9.36237256,3127.4,3125.6,21.40341467]
[1767371618045,0.03914145,3127.3,3125.8,9.55193167]
[1767371618245,9.36237256,3126.9,3125.9,2.42627027]
[1767371618451,0.002,3127.0,3126.0,0.839]
[1767371618662,0.002,3127.0,3125.7,9.55193167]
[1767371618870,0.002,3127.0,3125.2,3.19976804]
[1767371618871,9.36437256,3127.0,3125.2,3.19976804]
[1767371619088,9.36437256,3127.0,3125.3,0.839]
[1767371619286,9.36437256,3127.0,3125.1,12.75178649]
[1767371619487,9.36237256,3126.8,3125.2,1.27517865]
[1767371619684,9.36237256,3126.6,3125.0,0.839]
[1767371620199,9.36237256,3126.4,3124.5,9.55193167]
[1767371620564,9.36237256,3126.4,3124.7,9.55193167]
[1767371620759,0.838,3126.6,3124.7,9.55193167]
[1767371620760,9.40235592,3126.3,3124.7,9.55193167]
[1767371620974,9.36237256,3126.1,3124.6,0.839]
[1767371621176,9.36237256,3126.1,3124.6,16.79170271]
[1767371621463,0.838,3126.3,3124.7,9.55193167]
[1767371621726,3.19846473,3126.5,3125.0,3.2]
[1767371621861,12.56076207,3126.6,3125.1,0.839]
[1767371622063,12.56078002,3126.6,3125.2,0.839]
[1767371622447,9.40235336,3126.5,3125.2,1.9215389]
[1767371622555,9.36237256,3126.5,3125.2,0.839]
[1767371623061,9.36237256,3126.5,3125.2,10.39093167]
[1767371623267,0.838,3126.8,3125.2,10.39093167]
[1767371623493,9.36237256,3126.7,3124.7,9.55193167]
[1767371623787,9.36237256,3126.5,3123.6,9.55193167]
[1767371623964,9.36237256,3126.3,3123.9,2.206909]
[1767371624169,2.25556431,3126.4,3123.9,2.206909]
[1767371624170,9.36237256,3126.1,3123.9,2.206909]
[1767371624370,0.87798464,3126.2,3123.8,9.55193167]
[1767371624371,9.36237256,3125.9,3123.8,2.190949]
[1767371624602,9.36237256,3125.7,3124.1,3.20085887]
[1767371624899,10.20037256,3125.6,3124.0,3.20093096]
[1767371625067,10.20037256,3125.6,3124.2,4.03980007]
[1767371625273,10.20037256,3125.6,3124.3,0.839]
[1767371625682,9.36237256,3126.2,3124.4,9.55193167]
[1767371626085,9.36237256,3126.0,3124.6,0.001]
[1767371626298,7.23538125,3126.3,3124.6,0.001]
[1767371626299,9.36237256,3125.8,3124.6,0.001]
[1767371626493,9.36237256,3125.8,3124.6,1.79529317]
[1767371626704,7.23538125,3126.3,3124.6,1.79529317]
[1767371626705,10.20037256,3126.3,3124.6,1.79529317]
[1767371626918,13.39904556,3126.3,3124.6,11.34722484]
[1767371627101,9.36237256,3126.3,3124.9,13.969121]
[1767371627426,0.838,3126.7,3125.0,24.09874467]
[1767371627583,7.2346028,3126.7,3125.1,6.44870518]
[1767371627979,7.2346028,3126.7,3125.1,16.00063685]
[1767371627980,3.1983014,3126.7,3125.1,16.00063685]
[1767371628213,9.36237256,3126.9,3125.4,27.10412309]
[1767371628390,0.002,3127.0,3125.4,27.10412309]
[1767371628391,0.002,3127.0,3125.8,20.009382]
[1767371628595,9.36237256,3127.6,3126.1,21.551486]
[1767371628944,0.003,3127.7,3126.2,11.80336173]
[1767371629098,0.003,3127.7,3126.3,9.55193167]
[1767371629294,0.003,3127.7,3126.6,9.55193167]
[1767371629707,9.36537256,3127.7,3126.2,2.25143006]
[1767371629914,0.003,3127.7,3126.5,3.19846369]
[1767371630218,9.36237256,3130.1,3126.7,9.55193167]
[1767371630414,9.36237256,3130.0,3127.3,9.55193167]
[1767371630586,9.36237256,3129.8,3127.5,9.55193167]
[1767371631227,12.7791444,3130.1,3127.6,0.839]
[1767371631228,9.36237256,3129.6,3127.6,0.839]
[1767371631408,0.87793993,3129.7,3127.6,0.839]
[1767371631409,9.36237256,3129.4,3127.7,1.03909317]
[1767371631711,6.3912057,3129.3,3127.8,0.839]
[1767371632334,9.41577221,3129.2,3127.8,0.839]
[1767371632637,9.41577221,3130.0,3127.9,9.32176601]
[1767371632788,0.003,3130.3,3127.8,4.228]
[1767371632789,9.41577221,3129.8,3128.1,4.054309]
[1767371632985,9.41577221,3129.8,3128.1,3.79757]
[1767371633288,9.41577221,3129.6,3128.1,0.838]
[1767371633491,9.41577221,3129.6,3128.2,11.237278]
[1767371633707,0.838,3129.9,3128.2,9.32176601]
[1767371633907,3.19203268,3132.8,3129.9,9.32176601]
[1767371634113,9.41577221,3134.2,3131.6,9.32176601]
[1767371634436,9.41577221,3134.2,3132.8,0.16668367]
[1767371634627,9.41577221,3134.8,3132.9,6.05438956]
[1767371634828,0.15996681,3135.8,3133.8,8.32471026]
[1767371635031,3.18722373,3137.6,3134.6,8.29282026]
[1767371635216,6.37207704,3138.7,3137.0,5.10617867]
[1767371635418,3.18603852,3138.7,3137.1,1.51327763]
[1767371635733,9.41577221,3139.7,3137.1,1.51327763]
[1767371635734,12.60200767,3138.5,3137.1,0.288]
[1767371636038,0.08398747,3140.8,3137.1,0.288]
[1767371636039,6.36800712,3140.7,3137.6,30.0]
[1767371636237,3.18298844,3141.8,3137.4,5.35685509]
[1767371636238,0.03880235,3140.6,3137.4,0.5]
[1767371636401,9.55049025,3141.2,3139.1,2.464582]
[1767371636733,10.22569114,3141.1,3138.1,5.35685509]
[1767371636953,4.58143,3141.0,3137.5,0.55]
[1767371637238,9.18084715,3140.7,3136.9,10.536327]
[1767371637400,9.23084715,3138.7,3135.5,2.448006]
[1767371637602,9.23084715,3137.9,3134.5,0.6]
[1767371637822,9.23084715,3137.5,3133.7,0.6]
[1767371638001,9.23084715,3137.1,3134.4,30.0]
[1767371638209,9.23084715,3136.9,3134.4,3.472623]
[1767371638411,9.56022942,3138.0,3134.2,0.838]
[1767371638412,0.03984952,3136.8,3134.8,0.6]
[1767371638735,9.23084715,3136.7,3134.9,0.837]
[1767371639031,0.92706967,3136.8,3134.6,0.837]
[1767371639032,9.23084715,3136.5,3134.6,0.837]
[1767371639221,9.23084715,3136.3,3134.2,4.822821]
[1767371639401,9.23084715,3137.1,3134.3,7.159219]
[1767371639603,9.23084715,3136.9,3134.2,3.316892]
[1767371639833,9.23084715,3136.3,3133.2,6.73109]
[1767371639997,9.23084715,3136.1,3133.4,6.365918]
[1767371640199,9.23084715,3135.9,3133.5,0.837]
[1767371640399,9.23084715,3135.7,3133.4,0.837]
[1767371640632,9.23084715,3135.7,3133.6,2.3235]
[1767371640836,4.43112672,3134.9,3132.3,4.431748]
[1767371641020,0.96146149,3135.6,3132.5,5.342722]
[1767371641021,9.23084715,3134.8,3132.5,5.342722]
[1767371641222,9.23084715,3134.8,3133.0,6.119249]
[1767371641431,9.23084715,3134.5,3131.5,25.321571]
[1767371641647,9.23084715,3134.3,3131.7,10.751051]
[1767371641806,0.92308472,3135.6,3131.7,10.751051]
[1767371641807,9.23084715,3135.4,3132.1,8.664631]
[1767371642007,9.23084715,3135.0,3132.3,2.985428]
[1767371642236,9.23084715,3134.8,3132.3,2.985428]
[1767371642543,4.43112672,3135.3,3132.5,2.716812]
[1767371642544,9.23084715,3134.6,3132.5,2.716812]
[1767371642918,9.23084715,3135.4,3132.9,23.624379]
[1767371643223,9.23084715,3135.2,3133.0,0.837]
[1767371643408,9.23084715,3135.0,3133.1,0.837]
[1767371643742,4.11232346,3135.6,3132.9,0.00947435]
[1767371643743,9.23084715,3134.7,3132.9,0.00947435]
[1767371643953,9.23084715,3134.5,3132.5,0.00948117]
[1767371644236,9.23084715,3134.3,3132.6,0.0094876]
[1767371644442,9.23084715,3136.1,3133.6,4.43112672]
[1767371644643,9.23084715,3136.1,3133.8,27.70291]
[1767371644811,9.23084715,3136.1,3134.0,4.40832]
[1767371644812,9.23284715,3136.1,3134.0,4.40832]
[1767371645020,9.23284715,3136.1,3134.2,30.0]
[1767371645407,9.23284715,3136.1,3133.2,1.11015048]
[1767371645606,9.23084715,3135.9,3133.4,2.971437]
[1767371645802,9.23084715,3135.7,3133.6,4.50104]
[1767371646058,9.23084715,3135.5,3133.8,4.422602]
[1767371646352,9.23084715,3135.5,3133.7,0.46050838]
[1767371646353,9.23084715,3135.3,3133.9,0.00945786]
[1767371646553,9.23084715,3135.3,3132.3,5.5392772]
[1767371646554,9.23084715,3135.1,3132.3,1.10815048]
[1767371646709,9.23084715,3134.9,3132.5,3.70889]
[1767371646907,9.23084715,3134.7,3132.7,2.454016]
[1767371647110,0.16,3136.6,3132.6,1.30092048]
[1767371647111,9.23084715,3135.8,3133.5,25.129562]
[1767371647353,9.23084715,3135.8,3133.4,10.81396962]
[1767371647354,9.23084715,3135.8,3133.7,6.216926]
[1767371647638,9.23084715,3135.6,3133.8,0.00945592]
[1767371647855,9.23084715,3135.4,3133.0,3.855336]
[1767371648007,9.23084715,3135.2,3133.8,3.19094703]
[1767371648209,9.23084715,3136.0,3134.1,4.43112672]
[1767371648449,9.23084715,3136.8,3134.6,4.43112672]
[1767371648622,9.23084715,3138.5,3135.7,4.43112672]
[1767371648828,9.23084715,3138.1,3135.8,0.44311267]
[1767371649150,9.23084715,3137.6,3134.6,0.00940417]
[1767371649441,9.23084715,3137.1,3134.8,10.600518]
[1767371649741,9.23084715,3137.9,3135.3,4.43112672]
[1767371650041,9.23084715,3137.9,3135.9,18.998984]
[1767371650214,9.23084715,3137.9,3136.1,19.893964]
[1767371650419,9.23084715,3138.9,3137.9,0.08336599]
[1767371651041,9.23084715,3139.6,3138.0,0.836]
[1767371651211,9.23084715,3139.6,3137.9,0.08336599]
[1767371651414,10.7909354,3139.5,3137.9,0.08336599]
[1767371651626,3.18471628,3140.0,3137.9,0.08336599]
[1767371651627,9.23084715,3140.2,3138.2,4.43112672]
[1767371651823,9.23084715,3141.0,3138.8,26.338941]
[1767371652040,9.23084715,3141.0,3139.3,11.27854]
[1767371652240,9.23084715,3141.0,3138.3,9.60931553]
[1767371652241,9.23084715,3141.0,3138.7,4.43112672]
[1767371652545,9.23084715,3141.0,3137.9,0.24336599]
[1767371652546,9.23084715,3140.8,3138.1,2.289505]
[1767371652750,9.23084715,3139.7,3137.9,0.08336599]
[1767371652914,0.002,3139.8,3137.9,0.08336599]
[1767371652915,9.23084715,3139.5,3137.9,0.08336599]
[1767371653114,0.002,3139.8,3137.9,0.08336599]
[1767371653115,9.23084715,3139.4,3138.0,0.836]
[1767371653421,9.23084715,3140.2,3138.2,5.73404531]
[1767371653623,9.23084715,3141.0,3138.6,28.098355]
[1767371653824,4.43112672,3141.9,3138.3,0.835]
[1767371653825,9.23084715,3142.2,3139.3,30.0]
[1767371654013,2.14491067,3144.5,3139.2,0.16]
[1767371654014,9.23084715,3143.0,3140.6,30.0]
[1767371654210,9.23084715,3143.8,3141.2,30.0]
[1767371654461,12.72305096,3143.9,3138.7,21.32226034]
[1767371654462,9.23084715,3142.9,3141.3,0.39004539]
[1767371654744,9.23084715,3142.9,3139.5,0.05]
[1767371654745,9.23084715,3142.7,3141.4,0.835]
[1767371654912,9.23084715,3142.7,3140.0,4.43112672]
[1767371654913,9.23084715,3142.7,3140.4,4.43112672]
[1767371655114,9.23084715,3143.6,3141.0,17.008005]
[1767371655332,9.23084715,3143.6,3139.1,0.25952256]
[1767371655333,9.31483462,3147.1,3142.2,1.51983026]
[1767371655541,9.23084715,3146.1,3141.6,29.379758]
[1767371655740,9.23084715,3146.1,3141.1,2.12512116]
[1767371655741,9.23084715,3145.2,3142.1,30.0]
[1767371655913,9.23084715,3145.2,3143.2,4.43112672]
[1767371656115,9.23084715,3146.6,3144.0,0.05]
[1767371656345,9.23084715,3145.8,3142.8,1.48006567]
[1767371656647,9.23084715,3145.8,3143.1,12.11980267]
[1767371656856,4.43112672,3145.5,3143.3,21.373087]
[1767371657066,9.23084715,3144.9,3142.4,0.45305498]
[1767371657217,9.23084715,3144.9,3142.8,1.24394806]
[1767371657420,9.23084715,3144.9,3142.5,10.969364]
[1767371657421,9.23084715,3145.7,3143.0,1.48006567]
[1767371657724,9.23084715,3145.7,3142.4,0.47239952]
[1767371657725,9.23084715,3145.1,3142.2,25.555816]
[1767371657925,9.23084715,3144.9,3143.1,3.18157233]
[1767371658149,9.23084715,3144.9,3143.2,0.834]
[1767371658445,9.23084715,3144.9,3142.4,3.18227021]
[1767371658446,9.23084715,3144.7,3142.2,6.903432]
[1767371658646,9.23084715,3144.3,3142.2,3.18239853]
[1767371658837,4.43112672,3144.8,3142.3,4.01630017]
[1767371659041,9.23084715,3145.0,3142.2,0.45096994]
[1767371659250,9.23084715,3144.5,3142.4,4.1075]
[1767371659414,13.66197387,3144.2,3142.5,0.834]
[1767371659745,13.66197387,3144.2,3141.5,1.48006567]
[1767371659746,9.23084715,3144.2,3142.7,4.609294]
[1767371659972,9.23084715,3144.2,3142.4,3.18219676]
[1767371660128,9.23084715,3144.1,3141.9,3.1827495]
[1767371660328,10.90406219,3144.0,3142.0,0.834]
[1767371660643,9.23084715,3145.7,3143.2,1.48006567]
[1767371660846,9.23084715,3145.7,3143.1,30.0]
[1767371660847,3.18035849,3146.3,3144.1,3.244173]
[1767371661048,3.18035849,3146.3,3144.3,28.293002]
[1767371661255,3.18035849,3146.3,3143.5,5.91119239]
[1767371661256,9.23084715,3145.9,3143.0,0.05]
[1767371661418,3.18035849,3146.3,3143.3,3.221292]
[1767371661419,4.43112672,3145.5,3143.3,3.221292]
[1767371661615,4.43112672,3145.5,3142.6,6.36408225]
[1767371661616,13.66197387,3144.9,3142.4,12.109995]
[1767371661846,9.23084715,3144.6,3143.0,0.834]
[1767371662012,9.23084715,3144.6,3143.1,0.834]
[1767371662218,9.23084715,3144.6,3141.8,1.98006567]
[1767371662219,9.23084715,3144.6,3142.7,3.18190971]
[1767371662419,9.23084715,3144.2,3141.9,7.67043]
[1767371662755,9.23084715,3144.0,3141.9,5.198111]
[1767371662962,0.86453352,3144.1,3141.9,0.834]
[1767371662963,9.23084715,3143.8,3141.9,0.834]
[1767371663118,9.23084715,3143.2,3141.8,0.5]
[1767371663321,9.23084715,3143.0,3141.8,0.5]
[1767371663517,9.23084715,3142.4,3140.7,0.03184003]
[1767371663738,4.43112672,3142.5,3139.1,1.48006567]
[1767371663739,9.23084715,3142.0,3139.6,6.842079]
[1767371663920,9.23084715,3142.0,3139.8,16.187943]
[1767371664121,1.00648472,3142.9,3140.0,18.59583167]
[1767371664122,3.18187603,3142.8,3140.0,18.59583167]
[1767371664327,9.23084715,3142.9,3142.0,0.0135027]
[1767371664550,9.26138067,3142.8,3140.2,3.154314]
[1767371664852,9.23084715,3142.8,3140.3,0.03184409]
[1767371665050,9.23084715,3142.6,3140.2,0.833]
[1767371665256,9.23084715,3142.4,3140.4,3.1417]
[1767371665449,9.23084715,3142.4,3139.7,13.98617973]
[1767371665450,9.23084715,3142.4,3140.5,0.34601206]
[1767371665619,9.23084715,3142.2,3140.6,2.181113]